{"text_format":"2","workbook":"xlsx","n_sheets":1,"sheets":["IG - Premium Meme Pages"],"not_rendered":{"charts":0,"images":0,"macros":0,"external_links":0,"defined_names":0,"comments":0,"pivot_tables":0},"unopened":[],"bounds":{"document_bytes":16777216,"sheet_cells":100000,"run_cost":"one","rows_first":2000,"rows_last":500,"rows_between":2000,"halvings":0,"cell_chars":16384,"cell_head_chars":4096},"cells_cut":0,"cells_raw":0,"read":"whole","date_system":"1900"}

{"sheet":"IG - Premium Meme Pages","index":0,"n_rows":46,"n_cols":5,"rows_kept":46,"cut":false,"hidden":false,"merged":[]}
[]
[]
[null,"S. No.","NAME","LINK","FOLLOWERS"]
[]
[null,{"$f":"ROW()-ROW($A$4)","v":1},"rvcjinsta","https://www.instagram.com/rvcjinsta?igsh=MThzZTkxejJvOHo0NA==",12900000]
[null,2,"Ghanta ","https://www.instagram.com/ghantaa",8800000]
[null,3,"trolls_official","https://www.instagram.com/trolls_official?igsh=MXFtOTN1MHd2Y2s2aw==",10100000]
[null,4,"naughtyworld","https://www.instagram.com/naughtyworld?igsh=aWFpODcwa2trYmJn",11400000]
[null,5,"Adultsociety","https://www.instagram.com/adultsociety?igsh=cXNya3htYTR4azdj",6900000]
[null,6,"log.kya.sochenge","https://www.instagram.com/log.kya.sochenge",5700000]
[null,7,"love.connection_","https://www.instagram.com/love.connection_",4800000]
[null,8,"haq_se_single","https://instagram.com/haq_se_single?utm_medium=copy_link",1500000]
[null,9,"trollscasm","https://instagram.com/trollscasm?utm_medium=copy_link",1400000]
[null,10,"desi.joke","https://instagram.com/desi.joke?utm_medium=copy_link",1200000]
[null,11,"_sarcasticfamily_","https://instagram.com/_sarcasticfamily_?utm_medium=copy_link",1200000]
[null,12,"istudentsfacts","https://instagram.com/istudentsfacts?utm_medium=copy_link",683000]
[null,13,"laughtercolours","https://www.instagram.com/laughtercolours?igsh=c2diY2d0bHNyMjV1",4500000]
[null,14,"Fuddu Sperm","https://www.instagram.com/fuddu_sperm?igsh=ZnBsNXIwNWhzd3dj",2800000]
[null,15,"highbro","https://www.instagram.com/high.br0?igsh=c3Bpd2Nsamd6cW10",2000000]
[null,16,"pehla pyaar","https://www.instagram.com/pehla.pyar?igsh=NHg2NHF5N2Rscnox",1400000]
[null,17,"jeejaji","https://www.instagram.com/jeejaji?igsh=MXh4Z2Q4eXZoMzNkag==",2600000]
[null,18,"studentsfacts","https://www.instagram.com/studentsfacts.in?igsh=azltdHhicjFtZnZm",2200000]
[null,19,"girlz fact official ","https://www.instagram.com/girlzfactsofficial?igsh=YzM2NnloMXQwNXd2",2200000]
[null,20,"foofaji","https://www.instagram.com/foofaji?igsh=anF0Y3B2aHU5cTI0",1100000]
[null,21,"Just Hasley","https://www.instagram.com/just.hasley.things?igsh=aG9jNTF6NHJueGFl",1000000]
[null,22,"Bcbilliofficial ","https://www.instagram.com/bcbilliofficial?igsh=YWlnbHF3NmMxdG91",1700000]
[null,23,"tube.Indian ","https://www.instagram.com/tube.indian?igsh=OHI0NDIxYXk3b2U0",2300000]
[null,24,"sunnobc","https://www.instagram.com/sunnobc?igsh=OWwzbDYwdG1pd3hr",2200000]
[null,25,"_epic69","https://www.instagram.com/_epic69?igsh=MTRzbXU1eDdnbmt4MA==",3100000]
[null,26,"_life.of.student_","https://www.instagram.com/_life.of.student_?igsh=MzI0czN1Zm5uMTNr",1700000]
[null,27,"filmygags","https://www.instagram.com/filmygags?igsh=MzZ6ZWh1bnprM2Vu",2500000]
[null,28,"chutiyapa_overdose","https://www.instagram.com/chutiyapa_overdose?igsh=MW1uYnJteHU2b3ZtZw==",2200000]
[null,29,"theadulthumour","https://www.instagram.com/theadulthumour?igsh=Z3ZrN3pzdWVkb3h3",1100000]
[null,30,"fun_factorss","https://www.instagram.com/fun_factorss?igsh=c3VscWtxajNmNHkx",1000000]
[null,31,"thememeshumour","https://instagram.com/thememeshumour?igshid=YmMyMTA2M2Y=",912000]
[null,32,"sexysansar_","https://www.instagram.com/sexysansar_/",1000000]
[null,33,"ourcollegedays","https://www.instagram.com/ourcollegedays?igsh=NnZrZzd5NXNwZXgy",1200000]
[null,34,"facts.of.students","https://www.instagram.com/facts.of.students?igsh=ZWowNGlqNnhoMHdy",1600000]
[null,35,"just.lol.things","https://www.instagram.com/just.lol.things?igsh=ejY4ejcxcTJmZHFt",2200000]
[null,36,"trollgramofficial","https://www.instagram.com/trollgramofficial?igsh=MTF6Z3loZm1id2liYg==",855000]
[null,37,"justviralmeme","https://www.instagram.com/justviralmeme?igsh=MWI4YTMxNG43d2VtcA==",864000]
[null,38,"Love Romance ","https://www.instagram.com/_love.romance_?igsh=MW5mcHJyN3VrdjlzaQ==",881000]
[null,39,"Love Romanza ","https://www.instagram.com/loveromanza?igsh=OWsyb2kwcTVtaWU2",802000]
[null,40,"strictlyformenofficial","https://www.instagram.com/strictlyformenofficial?igsh=MWNqdDdndW1uYmQwbw==",607000]
[]
[null,null,null,"TOTAL",{"$f":"TEXT(SUM(E5:E44) / 1000000, \"0.0\") & \"M+\"","v":"115.1M+"}]